fUSD/lending_fUSD_20251128
["ID","MTS","AMOUNT","RATE_DAILY","PERIOD"]
[395005002,1764306639885,-93.13234162,0.000209,2]
[395005003,1764306639895,-151.0,0.000209,2]
[395005004,1764306639904,-151.0,0.000209,2]
[395005005,1764306639913,-151.0,0.000209,2]
[395005006,1764306639923,-294.843732,0.000209,2]
[395005007,1764306639932,-153.31612,0.000209,2]
[395005008,1764306639941,-153.31612,0.000209,2]
[395005009,1764306639951,-153.31612,0.000209,2]
[395005010,1764306639962,-153.31612,0.000209,2]
[395005011,1764306639972,-102.55984468,0.000209,2]
[395005012,1764306639984,-50.75627532,0.000209,2]
[395005013,1764306639993,-153.31612,0.000209,2]
[395005014,1764306640002,-153.31612,0.000209,2]
[395005015,1764306640012,-21.27148468,0.000209,2]
[395005016,1764306640023,-132.04463532,0.000209,2]
[395005017,1764306640032,-153.31612,0.000209,2]
[395005018,1764306640041,-153.31612,0.000209,2]
[395005019,1764306640051,-113.0735458,0.000209,2]
[395005020,1764306640070,-40.2425742,0.000209,2]
[395005021,1764306640081,-153.31612,0.000209,2]
[395005022,1764306640092,-164.32058,0.000209,2]
[395005023,1764306640102,-151.0,0.000209,2]
[395005024,1764306640111,-151.0,0.000209,2]
[395005025,1764306640121,-151.0,0.000209,2]
[395005026,1764306640130,-151.0,0.000209,2]
[395005027,1764306640140,-151.0,0.000209,2]
[395005028,1764306640150,-151.0,0.000209,2]
[395005029,1764306640159,-194.378819,0.000209,2]
[395005030,1764306640169,-151.0,0.000209,2]
[395005031,1764306640179,-151.0,0.000209,2]
[395005032,1764306640188,-247.794844,0.000209,2]
[395005033,1764306640198,-151.0,0.000209,2]
[395005034,1764306640208,-264.457264,0.000209,2]
[395005035,1764306640217,-151.0,0.000209,2]
[395005036,1764306640227,-151.0,0.000209,2]
[395005038,1764306640237,-151.0,0.000209,2]
[395005039,1764306640246,-151.0,0.000209,2]
[395005040,1764306640255,-206.471292,0.000209,2]
[395005041,1764306640264,-151.0,0.000209,2]
[395005042,1764306640273,-151.0,0.000209,2]
[395005043,1764306640283,-190.936844,0.000209,2]
[395005044,1764306640292,-151.0,0.000209,2]
[395005045,1764306640303,-151.0,0.000209,2]
[395005046,1764306640315,-151.0,0.000209,2]
[395005047,1764306640325,-151.0,0.000209,2]
[395005048,1764306640334,-151.0,0.000209,2]
[395005049,1764306640343,-151.0,0.000209,2]
[395005050,1764306640353,-151.0,0.000209,2]
[395005051,1764306640363,-151.0,0.000209,2]
[395005052,1764306640372,-151.0,0.000209,2]
[395005053,1764306640382,-151.0,0.000209,2]
[395005054,1764306640391,-151.0,0.000209,2]
[395005055,1764306640400,-151.0,0.000209,2]
[395005056,1764306640409,-276.533221,0.000209,2]
[395005057,1764306640418,-276.533221,0.000209,2]
[395005058,1764306640429,-276.533221,0.000209,2]
[395005059,1764306640438,-276.533221,0.000209,2]
[395005060,1764306640448,-276.533221,0.000209,2]
[395005061,1764306640457,-276.533221,0.000209,2]
[395005062,1764306640466,-276.533221,0.000209,2]
[395005063,1764306640475,-276.533221,0.000209,2]
[395005064,1764306640484,-276.533221,0.000209,2]
[395005065,1764306640494,-276.533221,0.000209,2]
[395005066,1764306640506,-276.533221,0.000209,2]
[395005067,1764306640517,-276.533221,0.000209,2]
[395005068,1764306640527,-276.533221,0.000209,2]
[395005069,1764306640538,-276.533221,0.000209,2]
[395005070,1764306640548,-276.533221,0.000209,2]
[395005071,1764306640557,-276.533221,0.000209,2]
[395005072,1764306640566,-522.532973,0.000209,2]
[395005073,1764306640575,-522.532973,0.000209,2]
[395005074,1764306640584,-522.532973,0.000209,2]
[395005075,1764306640593,-151.0,0.000209,2]
[395005076,1764306640602,-522.532973,0.000209,2]
[395005077,1764306640611,-161.625534,0.000209,2]
[395005078,1764306640620,-522.532973,0.000209,2]
[395005079,1764306640629,-522.532973,0.000209,2]
[395005080,1764306640638,-522.532973,0.000209,2]
[395005081,1764306640647,-151.0,0.000209,2]
[395005082,1764306640656,-860.89564,0.000209,2]
[395005083,1764306640665,-522.532973,0.000209,2]
[395005084,1764306640675,-151.0,0.000209,2]
[395005085,1764306640683,-860.89564,0.000209,2]
[395005086,1764306640693,-151.0,0.000209,2]
[395005087,1764306640701,-860.89564,0.000209,2]
[395005088,1764306640710,-151.0,0.000209,2]
[395005089,1764306640720,-860.89564,0.000209,2]
[395005090,1764306640738,-522.532973,0.000209,2]
[395005091,1764306640749,-522.532973,0.000209,2]
[395005092,1764306640758,-151.0,0.000209,2]
[395005093,1764306640768,-860.89564,0.000209,2]
[395005094,1764306640778,-522.532973,0.000209,2]
[395005095,1764306640787,-860.89564,0.000209,2]
[395005096,1764306640797,-522.532973,0.000209,2]
[395005097,1764306640806,-151.0,0.000209,2]
[395005098,1764306640816,-860.89564,0.000209,2]
[395005099,1764306640826,-151.0,0.000209,2]
[395005100,1764306640836,-860.89564,0.000209,2]
[395005101,1764306640846,-151.0,0.000209,2]
[395005102,1764306640856,-522.532973,0.000209,2]
[395005103,1764306640866,-522.532973,0.000209,2]
[395005104,1764306640875,-151.0,0.000209,2]
[395005105,1764306640885,-522.532973,0.000209,2]
[395005106,1764306640895,-860.89564,0.000209,2]
[395005107,1764306640905,-522.532973,0.000209,2]
[395005108,1764306640914,-336.88154694,0.000209,2]
[395005109,1764306640928,-365.648982,0.000209,2]
[395005110,1764306640943,-158.36511106,0.000209,2]
[395005111,1764306640952,-860.89564,0.000209,2]
[395005112,1764306640961,-287.294816,0.000209,2]
[395005113,1764306640970,-860.89564,0.000209,2]
[395005114,1764306640979,-151.0,0.000209,2]
[395005115,1764306640988,-151.0,0.000209,2]
[395005116,1764306640997,-316.73731474,0.000209,2]
[395005117,1764306641011,-544.15832526,0.000209,2]
[395005118,1764306641021,-283.957227,0.000209,2]
[395005119,1764306641030,-151.0,0.000209,2]
[395005120,1764306641039,-544.68465842,0.000209,2]
[395005128,1764306644085,-316.21098158,0.000209,2]
[395005129,1764306644095,-16.82657283,0.000209,2]
[395005130,1764306644141,-134.17342717,0.000209,2]
[395005131,1764306644151,-378.05805179,0.000209,2]
[395005133,1764306645814,-482.83758821,0.000209,2]
[395005134,1764306645824,-151.0,0.000209,2]
[395005135,1764306645833,-860.89564,0.000209,2]
[395005136,1764306645843,-151.0,0.000209,2]
[395005137,1764306645853,-0.35310041,0.000209,2]
[395005138,1764306645865,-150.64689959,0.000209,2]
[395005139,1764306645874,-125.23781365,0.000209,2]
[395005140,1764306645887,-25.76218635,0.000209,2]
[395005141,1764306645897,-151.0,0.000209,2]
[395005142,1764306645906,-83.86781365,0.000209,2]
[395005143,1764306646037,-67.13218635,0.000209,2]
[395005144,1764306646047,-282.623997,0.000209,2]
[395005145,1764306646057,-4584.066982,0.000209,2]
[395005146,1764306646067,-4584.066982,0.000209,2]
[395005147,1764306646076,-4584.066982,0.000209,2]
[395005148,1764306646085,-4584.066982,0.000209,2]
[395005149,1764306646094,-4584.066982,0.000209,2]
[395005150,1764306646104,-4584.066982,0.000209,2]
[395005151,1764306646113,-4584.066982,0.000209,2]
[395005152,1764306646123,-4584.066982,0.000209,2]
[395005153,1764306646132,-4584.066982,0.000209,2]
[395005154,1764306646141,-210.09958918,0.000209,2]
[395005156,1764306661503,946.59,0.00013699,2]
[395005183,1764307831928,-170.26,0.00016047,2]
[395005184,1764307831937,-286.14,0.000162,5]
[395005185,1764307831948,-252.51979189,0.000162,5]
[395005186,1764307831987,-2787.67153023,0.000162,5]
[395005187,1764307831996,-183.128608,0.00016438,2]
[395005188,1764307832005,-321.3,0.00016899,2]
[395005189,1764307832017,-219.14986127,0.00016973,2]
[395005195,1764307838092,-280.85013873,0.00016973,2]
[395005196,1764307838102,-1169.25290366,0.00016998,2]
[395005243,1764307840051,-30.74709634,0.00016998,2]
[395005244,1764307840060,-300.0,0.00016999,2]
[395005245,1764307840069,-300.0,0.00016999,2]
[395005246,1764307840078,-186.89126158,0.00016999,2]
[395005247,1764307840087,-197.76447059,0.00016999,2]
[395005248,1764307840096,-418.70448429,0.00016999,2]
[395005249,1764307840106,-10724.30196124,0.00017,2]
[395005250,1764307840120,-35136.75424778,0.00017,2]
[395005263,1764307843714,-148.19096801,0.00017,2]
[395005264,1764307843799,-295.31169798,0.00017,2]
[395005266,1764307846138,-1868.73411316,0.00017,2]
[395005268,1764307858692,153.84,9.812e-05,2]
[395005269,1764307859118,153.84,0.00010357,2]
[395005270,1764307859332,153.84,0.00010902,2]
[395005271,1764307859545,153.84,0.00011447,2]
[395005272,1764307859745,153.84,0.00011992,2]
[395005273,1764307860023,153.84,0.00012537,2]
[395005274,1764307860235,153.84,0.00013082,2]
[395005275,1764307860556,153.84,0.00013627,2]
[395005276,1764307860762,153.84,0.00014172,2]
[395005277,1764307860968,153.84,0.00014718,2]
[395005278,1764307861163,153.84,0.00015263,2]
[395005279,1764307861356,86.7898096,0.00015808,2]
[395005280,1764307861380,67.0501904,0.00015808,2]
[395005285,1764309032258,-153.84,0.00016353,2]
[395005286,1764309032272,-153.84,0.00016898,2]
[395005287,1764309032289,-413.09561967,0.000169,2]
[395005290,1764309032307,-219.5335025,0.00016917,2]
[395005292,1764309032320,-300.0,0.00016972,2]
[395005295,1764309032333,-300.0,0.00016972,2]
[395005296,1764309032346,-1200.0,0.00016972,2]
[395005297,1764309032361,-500.0,0.00016999,2]
[395005298,1764309032371,-500.0,0.00016999,2]
[395005299,1764309032383,-500.0,0.00016999,2]
[395005300,1764309032394,-500.0,0.00016999,2]
[395005301,1764309032409,-500.0,0.00016999,2]
[395005302,1764309032423,-556.3789668,0.00016999,2]
[395005303,1764309032434,-500.0,0.00016999,2]
[395005304,1764309032444,-500.0,0.00016999,2]
[395005305,1764309032454,-500.0,0.00016999,2]
[395005306,1764309032465,-446.55466603,0.00016999,2]
[395005307,1764309032476,-117793.30866784,0.00017,2]
[395005328,1764309040179,-3323.00455897,0.00017,2]
[395005330,1764309040193,-1384.40712295,0.00017,2]
[395005333,1764309040207,-35174.69442736,0.00017,2]
[395005335,1764309040219,-250.0,0.00017,2]
[395005337,1764309040231,-1172.13955517,0.00017,2]
[395005340,1764309040245,-430.10698483,0.00017,2]
[395005342,1764309040256,-4421.59,0.00017205,2]
[395005344,1764309040267,-153.84,0.00017443,2]
[395005346,1764309040282,-300.0,0.00017988,2]
[395005348,1764309040292,-153.84,0.00017988,2]
[395005350,1764309040303,-503.14117193,0.00018143,2]
[395005352,1764309040314,-206.29421011,0.00018143,2]
[395005355,1764309040328,-1000.0,0.00018251,2]
[395005357,1764309040339,-154.42,0.00018273,2]
[395005359,1764309040350,-153.84,0.00018533,2]
[395005361,1764309040362,-218.41191979,0.00018537,2]
[395005364,1764309040375,-201.58808021,0.00018537,2]
[395005366,1764309040385,-420.0,0.00018537,2]
[395005368,1764309040396,-1680.0,0.00018629,2]
[395005370,1764309040407,-1240.76,0.0001874,2]
[395005372,1764309040418,-212.1135591,0.0001875,2]
[395005374,1764309040429,-3958.5246779,0.0001875,2]
[395005377,1764309040440,-6850.58726082,0.0001875,2]
[395005379,1764309040456,-7614.06693129,0.0001875,2]
[395005382,1764309040474,-3672.94433369,0.0001875,2]
[395005415,1764309046011,-219.5335026,0.00017344,2]
[395005417,1764309046021,-25861.95264294,0.0001875,2]
[395005419,1764309046033,-295.29500006,0.0001875,2]
[395005427,1764309046258,-3535.0206366,0.0001875,2]
[395005526,1764309590941,132.9498096,0.00013699,2]
[395005527,1764309590965,196.79,0.00013699,2]
[395005528,1764309590987,250.0,0.00013699,2]
[395005529,1764309591010,177.89,0.00013699,2]
[395005530,1764309591033,157.7701904,0.00013699,2]
[395005531,1764309612593,151.42,0.00019178,30]
[395005532,1764309716089,42.2298096,0.00016,2]
[395005533,1764309716115,107.7701904,0.00016,2]
[395005557,1764310238242,-1553.69,0.00016438,2]
[395005558,1764310238404,-3031.21,0.00016438,2]
[395005559,1764310238415,-188.50528439,0.00016551,2]
[395005560,1764310238424,-427.35550804,0.00016651,2]
[395005561,1764310238434,-687.52360451,0.00016999,2]
[395005562,1764310240359,-512.47639549,0.00016999,2]
[395005563,1764310240369,-2000.0,0.00017,2]
[395005564,1764310240378,-250.0,0.00017,2]
[395005565,1764310240388,-184.0,0.00017333,2]
[395005566,1764310240398,-188.50528439,0.00017334,2]
[395005567,1764310240407,-345.32446194,0.00017334,2]
[395005568,1764310240418,-304.0,0.00017432,2]
[395005569,1764310240428,-491.64115483,0.00017433,2]
[395005570,1764310240438,-500.0,0.00017433,2]
[395005571,1764310240448,-500.0,0.00017433,2]
[395005572,1764310240458,-176.95465609,0.00017433,2]
[395005573,1764310240467,-500.0,0.00017433,2]
[395005574,1764310240477,-627.43915606,0.00017433,2]
[395005575,1764310240487,-500.0,0.00017433,2]
[395005576,1764310240498,-500.0,0.00017433,2]
[395005577,1764310240509,-500.0,0.00017433,2]
[395005578,1764310240519,-500.0,0.00017433,2]
[395005579,1764310240529,-500.0,0.00017433,2]
[395005580,1764310240538,-500.0,0.00017433,2]
[395005581,1764310240548,-500.0,0.00017433,2]
[395005582,1764310240558,-500.0,0.00017433,2]
[395005583,1764310240567,-500.0,0.00017433,2]
[395005584,1764310240576,-500.0,0.00017433,2]
[395005585,1764310240586,-500.0,0.00017433,2]
[395005586,1764310240596,-500.0,0.00017433,2]
[395005587,1764310240606,-500.0,0.00017433,2]
[395005588,1764310240615,-500.0,0.00017433,2]
[395005589,1764310240625,-500.0,0.00017433,2]
[395005590,1764310240637,-500.0,0.00017433,2]
[395005591,1764310240646,-624.32516156,0.00017433,2]
[395005592,1764310240656,-500.0,0.00017433,2]
[395005593,1764310240665,-500.0,0.00017433,2]
[395005594,1764310240675,-500.0,0.00017433,2]
[395005595,1764310240684,-550.1,0.00017433,2]
[395005596,1764310240697,-2356.2471068,0.00017434,2]
[395005597,1764310240706,-45721.5984177,0.00017434,2]
[395005598,1764310240731,-72304.3515653,0.00017434,2]
[395005599,1764310240741,-1080.3495842,0.00017434,2]
[395005600,1764310240750,-3152.0392502,0.00017434,2]
[395005601,1764310240760,-276.1330922,0.00017434,2]
[395005602,1764310240769,-5089.87030697,0.00017434,2]
[395005603,1764310240781,-508.27946083,0.00017434,2]
[395005604,1764310240809,-4424.66740042,0.00017434,2]
[395005605,1764310240834,-15631.90960036,0.00017434,2]
[395005609,1764310244348,-2506.73210152,0.00017434,2]
[395005610,1764310244357,-151.0,0.00017434,2]
[395005611,1764310244366,-550.1,0.00017707,2]
[395005612,1764310244375,-669.1709504,0.00017881,2]
[395005613,1764310244391,-430.80222033,0.00017881,2]
[395005631,1764310401023,158.3,9.135e-05,2]
[395005632,1764310401207,158.3,9.673e-05,2]
[395005633,1764310401403,37.8182096,0.0001021,2]
[395005634,1764310401428,120.4817904,0.0001021,2]
[395005635,1764310401603,93.13300806,0.00010748,2]
[395005636,1764310401628,65.16699194,0.00010748,2]
[395005637,1764310401814,158.3,0.00011285,2]
[395005638,1764310402011,158.3,0.00011822,2]
[395005639,1764310402207,158.3,0.0001236,2]
[395005640,1764310402403,158.3,0.00012897,2]
[395005641,1764310402619,158.3,0.00013434,2]
[395005642,1764310402811,158.3,0.00013972,2]
[395005643,1764310403014,158.3,0.00014509,2]
[395005644,1764310403199,158.3,0.00015046,2]
[395005645,1764310403562,158.3,0.00015584,2]
[395005647,1764310503165,304.87392374,0.00022,30]
[395005648,1764310808382,165.0,0.0002244,120]
[395005649,1764310809794,165.0,0.00023562,120]
[395005650,1764310811050,165.0,0.0002474,120]
[395005653,1764311033720,296.81755808,0.00016047,2]
[395005654,1764311105004,168.0,0.00023438,120]
[395005655,1764311106283,168.0,0.0002461,120]
[395005674,1764311431411,-158.3,0.00016121,2]
[395005676,1764311431421,-788.1,0.0001644,2]
[395005677,1764311431432,-1390.94928522,0.0001644,2]
[395005678,1764311431472,-2539.66725529,0.0001644,2]
[395005679,1764311431488,-325.17197243,0.0001644,2]
[395005680,1764311431500,-660.42473548,0.0001644,2]
[395005681,1764311431535,-14508.242034,0.0001644,2]
[395005682,1764311431546,-24643.44471758,0.0001644,2]
[395005683,1764311431557,-158.3,0.00016659,2]
[395005684,1764311431575,-300.0,0.00016721,2]
[395005685,1764311431586,-1200.0,0.00016721,2]
[395005686,1764311431596,-300.0,0.00016721,2]
[395005687,1764311431605,-500.0,0.00016999,2]
[395005688,1764311431615,-500.0,0.00016999,2]
[395005689,1764311431624,-236.03612906,0.00016999,2]
[395005690,1764311431634,-323.20463018,0.00017,2]
[395005691,1764311431647,-448.54201431,0.00017,2]
[395005692,1764311431658,-406.08,0.00017,2]
[395005710,1764311437405,-822.17335551,0.00017,2]
[395005711,1764311437414,-1915.36617944,0.00017,2]
[395005712,1764311437464,-2424.24174609,0.00017,2]
[395005713,1764311437475,-300.6,0.00017,2]
[395005714,1764311437582,-800.0,0.00017,2]
[395005735,1764311439957,-500.0,0.00017,2]
[395005745,1764311443344,-1819.10305192,0.00017,2]
[395005749,1764311445438,-321.55730911,0.00017,2]
[395005750,1764311445723,-1392.6750772,0.00017,2]
[395005761,1764311697513,161.07,0.00015,6]
[395005765,1764312041092,3728.0,0.00025,120]
[395005773,1764312443266,877.44,0.00013699,2]
[395005774,1764312586381,160.35,0.00019178,30]
[395005776,1764312631668,-179.28100155,0.00016798,2]
[395005777,1764312631678,-216.57415053,0.00016808,2]
[395005778,1764312631687,-179.28100154,0.00016816,2]
[395005779,1764312631696,-1200.0,0.00016898,2]
[395005780,1764312631706,-774.1700147,0.00016899,2]
[395005781,1764312631784,-6062.5599853,0.00016899,2]
[395005782,1764312631794,-7962.9159167,0.000169,2]
[395005783,1764312631807,-1333.58576814,0.000169,2]
[395005795,1764312636501,780.59305192,0.00016047,2]
[395005796,1764312637668,-293.56641359,0.00016047,2]
[395005805,1764312639957,-3298.46257767,0.00016047,2]
[395005806,1764312640147,-1918.19876892,0.00016047,2]
[395005807,1764312640157,-7970.44399368,0.000169,2]
[395005808,1764312640168,-7359.72733283,0.000169,2]
[395005814,1764312645875,-880.25531236,0.000169,2]
[395005815,1764312645886,-584.14014,0.000169,2]
[395005823,1764312719587,893.559,0.00025,120]
[395005824,1764312803539,1328.64986034,0.00015,2]
[395005825,1764312961114,1500.0,0.000155,3]
[395005826,1764313057741,2430.86085653,0.00025,120]
[395005827,1764313229020,242.768474,0.00025,120]
[395005828,1764313353352,161.29,8.029e-05,2]
[395005829,1764313353561,161.29,8.832e-05,2]
[395005830,1764313353789,161.29,9.635e-05,2]
[395005831,1764313354009,161.29,0.00010438,2]
[395005832,1764313354209,161.29,0.00011241,2]
[395005833,1764313354398,161.29,0.00012044,2]
[395005834,1764313354682,161.29,0.00012847,2]
[395005835,1764313354865,161.29,0.0001365,2]
[395005836,1764313355053,115.79297741,0.00014452,2]
[395005837,1764313355077,45.49702259,0.00014452,2]
[395005838,1764313355262,161.29,0.00015255,2]
[395005849,1764313831850,-291.53556318,0.00015733,2]
[395005850,1764313831864,-195.0,0.00015825,2]
[395005851,1764313831877,-200.0,0.00015917,2]
[395005852,1764313831890,-161.29,0.00016058,2]
[395005853,1764313831901,-692.39,0.00016309,2]
[395005854,1764313831913,-179.28100155,0.00016404,2]
[395005855,1764313831923,-3820.75,0.00016438,2]
[395005856,1764313831934,-166.66,0.00016504,2]
[395005857,1764313831948,-222.6883512,0.00016532,2]
[395005858,1764313831960,-610.0,0.00016629,2]
[395005860,1764313831971,-150.04,0.00016712,2]
[395005862,1764313831984,-222.75,0.00016712,2]
[395005864,1764313831996,-179.28100154,0.00016714,2]
[395005866,1764313832021,-413.09561967,0.00016714,2]
[395005868,1764313832035,-1200.0,0.00016728,2]
[395005871,1764313832051,-300.0,0.00016812,2]
[395005873,1764313832066,-300.0,0.00016812,2]
[395005876,1764313832081,-500.0,0.00016813,2]
[395005878,1764313832094,-303.37099124,0.00016813,2]
[395005881,1764313832110,-500.0,0.00016813,2]
[395005883,1764313832123,-500.0,0.00016813,2]
[395005886,1764313832137,-500.0,0.00016813,2]
[395005888,1764313832149,-500.0,0.00016813,2]
[395005890,1764313832161,-500.0,0.00016813,2]
[395005893,1764313832173,-500.0,0.00016813,2]
[395005896,1764313832189,-500.0,0.00016813,2]
[395005898,1764313832203,-203.16831964,0.00016813,2]
[395005901,1764313832217,-500.0,0.00016813,2]
[395005903,1764313832230,-500.0,0.00016813,2]
[395005905,1764313832243,-500.0,0.00016813,2]
[395005907,1764313832254,-388.80718685,0.00016813,2]
[395005910,1764313832264,-500.0,0.00016813,2]
[395005912,1764313832276,-500.0,0.00016813,2]
[395005914,1764313832288,-500.0,0.00016813,2]
[395005917,1764313832302,-500.0,0.00016813,2]
[395005919,1764313832315,-500.0,0.00016813,2]
[395005921,1764313832327,-500.0,0.00016813,2]
[395005923,1764313832339,-500.0,0.00016813,2]
[395005926,1764313832353,-500.0,0.00016813,2]
[395005927,1764313832364,-39250.4848385,0.00016814,2]
[395005929,1764313832375,-156.9307938,0.00016814,2]
[395005930,1764313832390,-2506.7321015,0.00016814,2]
[395005931,1764313832404,-6037.900292,0.00016814,2]
[395005932,1764313832418,-39866.5905047,0.00016814,2]
[395005933,1764313832429,-151.0,0.00016814,2]
[395005934,1764313832441,-166.66,0.00016851,2]
[395005935,1764313832453,-803.83,0.00016899,2]
[395005936,1764313832465,-3908.93153629,0.000169,2]
[395005937,1764313832476,-22146.70103047,0.000169,2]
[395005938,1764313832488,-696.21,0.000169,2]
[395005939,1764313832499,-2116.84342,0.000169,2]
[395005940,1764313832510,-3378.91333046,0.000169,2]
[395005941,1764313832521,-151.0,0.000169,2]
[395005942,1764313832531,-500.0,0.0001691,2]
[395005943,1764313832543,-150.0,0.0001691,2]
[395005944,1764313832553,-500.0,0.0001691,2]
[395005945,1764313832564,-500.0,0.0001691,2]
[395005946,1764313832576,-500.0,0.0001691,2]
[395005947,1764313832587,-157.99052045,0.0001691,2]
[395005948,1764313832598,-500.0,0.0001691,2]
[395005949,1764313832609,-465.28,0.0001691,2]
[395005950,1764313832621,-300.0,0.00016919,2]
[395005951,1764313832632,-151.0,0.00016919,2]
[395005952,1764313832644,-500.0,0.00016919,2]
[395005953,1764313832655,-500.0,0.00016919,2]
[395005954,1764313832667,-150.0,0.00016919,2]
[395005955,1764313832679,-500.0,0.00016919,2]
[395005956,1764313832690,-500.0,0.00016919,2]
[395005957,1764313832700,-150.0,0.00016919,2]
[395005958,1764313832713,-500.0,0.00016919,2]
[395005959,1764313832725,-500.0,0.00016919,2]
[395005960,1764313832735,-293.09313901,0.00016919,2]
[395005961,1764313832746,-207.86609495,0.00016919,2]
[395005962,1764313832757,-154.37354448,0.00016919,2]
[395005963,1764313832769,-157.692108,0.0001692,2]
[395005964,1764313832780,-151.0,0.0001692,2]
[395005965,1764313832791,-14088.6397978,0.0001692,2]
[395005966,1764313832814,-1500.0,0.0001692,2]
[395005968,1764313837782,-150.0,0.0001691,2]
[395005969,1764313837795,-150.0,0.0001691,2]
[395005970,1764313837806,-25.87072973,0.0001691,2]
[395005974,1764313839858,-125.06117894,0.0001691,2]
[395005975,1764313839869,-500.0,0.0001691,2]
[395005976,1764313839878,-161685.96075344,0.0001692,2]
[395005977,1764313839888,-215.63620973,0.00016973,2]
[395005978,1764313839897,-500.0,0.00016973,2]
[395005979,1764313839907,-471.99204975,0.00016973,2]
[395005980,1764313839916,-50357.20049557,0.00017,2]
[395005981,1764313839925,-702.2,0.00017,2]
[395005982,1764313839935,-702.2,0.00017,2]
[395005983,1764313839945,-702.31,0.00017,2]
[395005984,1764313839955,-151.0,0.00017,2]
[395005985,1764313839964,-151.0,0.00017,2]
[395005986,1764313839975,-250.0,0.00017,2]
[395005987,1764313839984,-153.010409,0.00017,2]
[395005988,1764313839995,-325.29,0.0001704,2]
[395005989,1764313840004,-500.0,0.00017047,2]
[395005990,1764313840014,-150.0,0.00017047,2]
[395005991,1764313840023,-500.0,0.00017047,2]
[395005992,1764313840032,-500.0,0.00017047,2]
[395005993,1764313840040,-500.0,0.00017047,2]
[395005994,1764313840050,-500.0,0.00017047,2]
[395005995,1764313840059,-150.0,0.00017047,2]
[395005996,1764313840068,-150.0,0.00017047,2]
[395005997,1764313840076,-500.0,0.00017047,2]
[395005998,1764313840086,-500.0,0.00017056,2]
[395005999,1764313840095,-500.0,0.00017056,2]
[395006000,1764313840103,-500.0,0.00017056,2]
[395006001,1764313840113,-500.0,0.00017056,2]
[395006002,1764313840122,-500.0,0.00017056,2]
[395006003,1764313840131,-500.0,0.00017056,2]
[395006004,1764313840141,-318.36618666,0.00017147,2]
[395006005,1764313840151,-803.83,0.00017173,2]
[395006006,1764313840160,-284.32992244,0.00017177,2]
[395006007,1764313840170,-500.0,0.00017184,2]
[395006008,1764313840179,-150.0,0.00017184,2]
[395006009,1764313840188,-500.0,0.00017184,2]
[395006010,1764313840197,-500.0,0.00017184,2]
[395006011,1764313840206,-500.0,0.00017184,2]
[395006012,1764313840215,-500.0,0.00017184,2]
[395006013,1764313840225,-159.03008291,0.00017184,2]
[395006014,1764313840234,-150.0,0.00017184,2]
[395006015,1764313840243,-500.0,0.00017184,2]
[395006016,1764313840252,-500.0,0.00017193,2]
[395006017,1764313840262,-500.0,0.00017193,2]
[395006018,1764313840271,-500.0,0.00017193,2]
[395006019,1764313840280,-500.0,0.00017193,2]
[395006020,1764313840289,-306.0,0.00017193,2]